bitfinex/quotes_BTCUSD_20240905
["timestamp","ask_amount","ask_price","bid_price","bid_amount"]
[1725501597013,0.93693501,58172.0,58171.0,0.56938824]
[1725501597224,0.69627001,58172.0,58171.0,0.56938824]
[1725501597640,0.93693501,58172.0,58171.0,0.56938824]
[1725501598295,0.93693501,58172.0,58171.0,0.67249791]
[1725501598971,0.93775101,58172.0,58171.0,0.56938824]
[1725501599679,0.93775101,58172.0,58171.0,0.67249791]
[1725501600097,0.93775101,58172.0,58171.0,0.56938824]
[1725501600313,0.93775101,58172.0,58171.0,0.67249791]
[1725501600812,0.69708601,58172.0,58171.0,0.67249791]
[1725501601276,1.06254718,58172.0,58171.0,0.01746231]
[1725501601498,1.11472936,58172.0,58171.0,0.06904176]
[1725501601709,1.35539436,58172.0,58171.0,0.01746231]
[1725501601926,1.46256182,58172.0,58171.0,0.01746231]
[1725501602371,1.22189682,58172.0,58171.0,0.01746231]
[1725501602596,1.16971464,58172.0,58171.0,0.01746231]
[1725501602847,1.11681847,58172.0,58171.0,0.01746231]
[1725501603064,1.11981847,58172.0,58171.0,0.01746231]
[1725501603502,1.04791847,58172.0,58171.0,0.01746231]
[1725501603717,1.05291847,58172.0,58171.0,0.06904176]
[1725501603941,0.94575101,58172.0,58171.0,0.15654176]
[1725501604188,0.67708601,58172.0,58171.0,0.66103443]
[1725501604419,0.67708601,58172.0,58171.0,0.55792476]
[1725501604701,0.68208601,58172.0,58171.0,0.55792476]
[1725501605132,0.67408601,58172.0,58171.0,0.55792476]
[1725501605589,0.67408601,58172.0,58171.0,0.68686337]
[1725501605812,0.91475101,58172.0,58171.0,0.66108141]
[1725501606069,0.93775101,58172.0,58171.0,0.55788429]
[1725501606313,0.93775101,58172.0,58171.0,0.68687108]
[1725501606552,0.69708601,58172.0,58171.0,0.55788429]
[1725501606795,0.67508601,58172.0,58171.0,0.55788429]
[1725501607231,0.67508601,58172.0,58171.0,0.56188429]
[1725501611648,0.101816,58172.0,58171.0,0.56188429]
[1725501611870,0.362813,58172.0,58171.0,0.56188429]
[1725501612302,0.362813,58172.0,58171.0,1.09627224]
[1725501612547,0.122148,58172.0,58171.0,1.09627224]
[1725501613237,0.122148,58172.0,58171.0,1.11629498]
[1725501613474,0.122148,58172.0,58171.0,1.09627224]
[1725501613692,0.122148,58172.0,58171.0,1.47729772]
[1725501613693,0.001816,58172.0,58171.0,1.47729772]
[1725501615455,0.001816,58172.0,58171.0,1.74781466]
[1725501615705,0.52650515,58194.0,58180.0,0.63631546]
[1725501615941,0.12029,58193.0,58180.0,2.05355981]
[1725501616182,0.52650515,58194.0,58180.0,2.05355981]
[1725501616183,0.120291,58192.0,58180.0,2.05355981]
[1725501616384,0.120293,58191.0,58180.0,2.05355981]
[1725501616648,0.120293,58191.0,58180.0,2.03353733]
[1725501616857,0.240579,58193.0,58180.0,2.05353311]
[1725501617080,0.120292,58192.0,58180.0,2.07353311]
[1725501617534,0.240568,58196.0,58180.0,2.07353311]
[1725501617752,0.001816,58181.0,58180.0,2.33105421]
[1725501618210,0.001816,58181.0,58180.0,2.49172707]
[1725501618676,0.002816,58181.0,58180.0,2.49272707]
[1725501619184,0.002816,58181.0,58180.0,2.26512446]
[1725501619642,0.002816,58181.0,58180.0,2.49246079]
[1725501620789,0.000816,58204.0,58203.0,0.1589]
[1725501620998,0.121082,58204.0,58203.0,0.1589]
[1725501621430,0.121082,58204.0,58203.0,0.17474801]
[1725501621648,0.000816,58204.0,58203.0,0.17474801]
[1725501622585,0.001816,58204.0,58203.0,0.17674801]
[1725501623252,0.001816,58204.0,58203.0,0.18574801]
[1725501623710,0.122082,58204.0,58203.0,0.18574801]
[1725501624187,0.001816,58204.0,58203.0,0.18574801]
[1725501624454,0.122082,58204.0,58203.0,0.18574801]
[1725501625807,0.843681,58204.0,58203.0,0.02684801]
[1725501626038,0.97175935,58204.0,58203.0,0.02684801]
[1725501626260,0.97175935,58204.0,58203.0,0.011]
[1725501626956,0.91886318,58204.0,58203.0,0.011]
[1725501628296,0.866681,58204.0,58203.0,0.011]
[1725501631527,1.107214,58204.0,58203.0,0.011]
[1725501631737,1.25939618,58204.0,58203.0,0.011]
[1725501632234,1.25839618,58204.0,58203.0,0.009]
[1725501632459,1.25758018,58204.0,58203.0,0.009]
[1725501632704,1.33008018,58204.0,58203.0,0.014]
[1725501632945,1.71550935,58204.0,58203.0,0.014]
[1725501633200,1.71550935,58204.0,58203.0,0.005]
[1725501633689,1.71550935,58204.0,58203.0,0.008]
[1725501633690,1.71750935,58204.0,58203.0,0.008]
[1725501633929,1.66261318,58204.0,58203.0,0.008]
[1725501634158,1.66261318,58204.0,58203.0,0.005]
[1725501634620,1.66342918,58204.0,58203.0,0.006]
[1725501634848,1.66342918,58204.0,58203.0,0.001]
[1725501635334,1.67042918,58204.0,58203.0,0.002]
[1725501635593,1.65775942,58204.0,58203.0,0.001]
[1725501635831,1.67075942,58204.0,58203.0,0.002]
[1725501636298,0.601467,58191.0,58190.0,0.0872]
[1725501636529,0.624467,58191.0,58190.0,0.0872]
[1725501636786,0.865054,58191.0,58190.0,0.10308784]
[1725501637027,0.1,58198.0,58192.0,0.0872]
[1725501637028,0.120286,58195.0,58192.0,0.0872]
[1725501637235,0.120286,58195.0,58189.0,0.240593]
[1725501637236,0.120284,58196.0,58193.0,0.0713]
[1725501637486,0.120285,58195.0,58194.0,0.0872]
[1725501637726,0.220285,58195.0,58194.0,0.0872]
[1725501637959,0.120285,58195.0,58194.0,0.10307558]
[1725501638196,0.240556,58199.0,58194.0,0.10307558]
[1725501638197,0.24056,58198.0,58194.0,0.10307558]
[1725501638433,0.120283,58196.0,58194.0,0.10307558]
[1725501638658,0.120285,58195.0,58194.0,0.10307558]
[1725501638900,0.120285,58195.0,58194.0,0.10507558]
[1725501639428,0.120285,58195.0,58194.0,0.10307558]
[1725501640124,0.120285,58195.0,58194.0,0.10507558]
[1725501640593,0.360855,58195.0,58194.0,0.10507558]
[1725501641080,0.601425,58195.0,58194.0,0.10507558]
[1725501641320,0.601425,58195.0,58194.0,0.0892]
[1725501641807,0.360855,58195.0,58194.0,0.0892]
[1725501642255,0.360855,58195.0,58194.0,0.10507558]
[1725501643393,0.601425,58195.0,58194.0,0.10507558]
[1725501643875,0.601425,58195.0,58194.0,0.0892]
[1725501644326,0.601425,58195.0,58194.0,0.10507558]
[1725501645016,0.601425,58195.0,58194.0,0.0892]
[1725501645978,0.841995,58195.0,58194.0,0.0892]
[1725501646210,0.864995,58195.0,58194.0,0.0892]
[1725501647826,0.864995,58195.0,58194.0,0.09083]
[1725501649047,0.864995,58195.0,58194.0,0.00363]
[1725501649531,1.13283532,58195.0,58194.0,0.00363]
[1725501649753,1.23283532,58195.0,58194.0,0.00363]
[1725501652077,1.30313532,58195.0,58194.0,0.00363]
[1725501655239,1.23283532,58195.0,58194.0,0.00363]
[1725501655452,0.964995,58195.0,58194.0,0.00363]
[1725501655703,0.964995,58195.0,58194.0,0.06963]
[1725501656561,0.964995,58195.0,58194.0,0.08550558]
[1725501658914,0.964995,58195.0,58194.0,0.01950558]
[1725501659595,0.701425,58195.0,58194.0,0.01950558]
[1725501659778,0.701425,58195.0,58194.0,0.47810633]
[1725501660023,0.701425,58195.0,58194.0,0.40107747]
[1725501660495,0.460855,58195.0,58194.0,0.40107747]
[1725501660719,0.460855,58195.0,58194.0,0.50378262]
[1725501661390,0.460855,58195.0,58194.0,0.40107747]
[1725501661612,0.460855,58195.0,58194.0,0.50378262]
[1725501662045,0.220285,58195.0,58194.0,0.50378262]
[1725501662261,0.120278,58199.0,58194.0,0.64974591]
[1725501662489,0.340548,58201.0,58197.0,0.10286757]
[1725501662490,0.120279,58198.0,58197.0,0.10286757]
[1725501662710,0.460837,58198.0,58197.0,0.63933946]
[1725501662936,0.460837,58198.0,58197.0,0.65520585]
[1725501663640,0.120275,58200.0,58197.0,0.65520585]
[1725501663871,0.24135,58204.0,58197.0,0.65520585]
[1725501663872,0.24135,58204.0,58199.0,0.28775624]
[1725501664101,0.120273,58201.0,58200.0,0.66932813]
[1725501664337,0.240538,58203.0,58201.0,0.0872]
[1725501664338,0.12027,58202.0,58201.0,0.0872]
[1725501664572,0.22027,58202.0,58201.0,0.56643118]
[1725501665017,0.22027,58202.0,58201.0,0.65188532]
[1725501665238,0.1,58202.0,58201.0,0.65188532]
[1725501665458,0.000816,58204.0,58203.0,0.273868]
[1725501665649,0.000816,58204.0,58203.0,0.5178409]
[1725501665904,0.000816,58204.0,58203.0,0.53368891]
[1725501666388,0.121082,58204.0,58203.0,0.16944801]
[1725501667499,0.121082,58204.0,58203.0,0.17344801]
[1725501667933,0.121082,58204.0,58203.0,0.17144801]
[1725501668148,0.122082,58204.0,58203.0,0.18344801]
[1725501668366,0.122082,58204.0,58203.0,0.18144801]
[1725501668588,0.122082,58204.0,58203.0,0.19144801]
[1725501671780,0.362615,58204.0,58203.0,0.28424541]
[1725501671996,0.362615,58204.0,58203.0,0.12284801]
[1725501672218,0.362615,58204.0,58203.0,0.19995565]
[1725501672647,0.602148,58204.0,58203.0,0.18795565]
[1725501673082,0.603148,58204.0,58203.0,0.12184801]
[1725501673291,0.603148,58204.0,58203.0,0.1989543]
[1725501673505,0.603148,58204.0,58203.0,0.19895488]
[1725501673711,0.603148,58204.0,58203.0,0.11495488]
[1725501674388,0.603148,58204.0,58203.0,0.0892492]
[1725501674389,0.843681,58204.0,58203.0,0.0892492]
[1725501674601,0.843681,58204.0,58203.0,0.08925015]
[1725501674602,0.866681,58204.0,58203.0,0.08925015]
[1725501676187,0.866681,58204.0,58203.0,0.03784801]
[1725501676657,1.279214,58204.0,58203.0,0.03784801]
[1725501676882,1.279214,58204.0,58203.0,0.022]
[1725501677100,1.279214,58204.0,58203.0,0.011]
[1725501677319,0.601415,58196.0,58195.0,0.05140214]
[1725501677553,0.624415,58196.0,58195.0,0.05140214]
[1725501677796,0.24057,58195.0,58194.0,0.10444793]
[1725501678019,0.601425,58195.0,58194.0,0.13014145]
[1725501678654,0.601425,58195.0,58194.0,0.13012321]
[1725501679485,0.601425,58195.0,58194.0,0.51166866]
[1725501679920,0.601425,58195.0,58194.0,0.38317545]
[1725501680121,0.120285,58195.0,58194.0,0.46907545]
[1725501680341,0.120285,58195.0,58194.0,0.53687545]
[1725501680544,0.120285,58195.0,58194.0,0.55287545]
[1725501680803,0.001,58195.0,58194.0,0.68903803]
[1725501681257,0.001,58195.0,58194.0,0.92961203]
[1725501682702,0.001,58195.0,58194.0,1.46374558]
[1725501683582,0.001,58195.0,58194.0,1.4637241]
[1725501684526,0.001,58195.0,58194.0,0.92959055]
[1725501684728,0.001,58195.0,58194.0,2.12636445]
[1725501686379,0.001,58195.0,58194.0,1.97213842]
[1725501686606,0.001,58195.0,58194.0,2.12634192]
[1725501687027,0.001,58195.0,58194.0,1.97213842]
[1725501691183,0.001,58195.0,58194.0,2.21271242]
[1725501691393,0.4678,58213.0,58196.0,0.002]
[1725501691653,0.120258,58208.0,58205.0,0.05138483]
[1725501691849,0.22026,58207.0,58206.0,0.05138483]
[1725501692054,0.1,58207.0,58206.0,0.06722365]
[1725501693190,0.22026,58207.0,58206.0,0.06722365]
[1725501693625,0.22026,58207.0,58206.0,0.06721714]
[1725501693844,0.1,58207.0,58206.0,0.06721714]
[1725501694055,0.220258,58208.0,58206.0,0.06721714]
[1725501694265,0.220258,58208.0,58206.0,0.01583882]
[1725501694472,0.001,58207.0,58206.0,0.01583882]
[1725501694727,0.12126,58207.0,58206.0,0.09290631]
[1725501694933,0.461596,58207.0,58206.0,0.09290631]
[1725501695157,0.461596,58207.0,58206.0,0.01583882]
[1725501695384,0.46099469,58207.0,58206.0,0.02183882]
[1725501696550,0.46099469,58207.0,58206.0,0.01583882]
[1725501696988,0.46199469,58207.0,58206.0,0.02383882]
[1725501697199,0.46199469,58207.0,58206.0,0.014]
[1725501697641,0.13468732,58207.0,58206.0,0.06538592]
[1725501697874,0.13468732,58207.0,58206.0,0.08122474]
[1725501698098,0.37520732,58207.0,58206.0,0.08122474]
[1725501699433,0.37520732,58207.0,58206.0,0.02983882]
[1725501700300,0.47520732,58207.0,58206.0,0.02983882]
[1725501701456,0.47520732,58207.0,58206.0,0.10690631]
[1725501702751,0.47520732,58207.0,58206.0,0.17540631]
[1725501703203,0.47520732,58207.0,58206.0,0.17545927]
[1725501703449,0.47520732,58207.0,58206.0,0.55694257]
[1725501703874,0.47520732,58207.0,58206.0,0.64674257]
[1725501704087,0.47520732,58207.0,58206.0,0.56962212]
[1725501704531,0.47520732,58207.0,58206.0,0.67244939]
[1725501704766,0.23468732,58207.0,58206.0,0.67244939]
[1725501706344,0.23468732,58207.0,58206.0,0.67407939]
[1725501707263,0.23468732,58207.0,58206.0,0.57125212]
[1725501708429,0.101,58207.0,58206.0,0.57125212]
[1725501709755,0.22126,58207.0,58206.0,0.57125212]
[1725501711301,0.101,58207.0,58206.0,0.57125212]
[1725501711506,0.22126,58207.0,58206.0,0.57125212]
[1725501712604,0.22126,58207.0,58206.0,0.50275212]
[1725501712871,0.241327,58209.0,58206.0,0.50275212]
[1725501712872,0.000815,58209.0,58206.0,0.50275212]
[1725501713094,0.120258,58208.0,58206.0,0.19845363]
[1725501713324,0.12026,58207.0,58206.0,0.10865363]
[1725501713547,0.12026,58207.0,58206.0,0.49014404]
[1725501713757,0.12026,58207.0,58206.0,0.47614404]
[1725501713976,0.12026,58207.0,58206.0,0.48014404]
[1725501714213,0.12026,58207.0,58206.0,0.48614404]
[1725501714438,0.12026,58207.0,58206.0,0.48014404]
[1725501714696,0.12026,58207.0,58206.0,0.48814404]
[1725501714920,0.46178,58207.0,58206.0,0.48814404]
[1725501715594,0.46178,58207.0,58206.0,0.10665363]
[1725501715835,0.46178,58207.0,58206.0,0.10265363]
[1725501716075,0.46178,58207.0,58206.0,0.10865363]
[1725501716311,0.46178,58207.0,58206.0,0.03146882]
[1725501716546,0.46178,58207.0,58206.0,0.41296191]
[1725501717016,0.20305349,58207.0,58206.0,0.41296191]
[1725501717257,0.32331349,58207.0,58206.0,0.41296191]
[1725501717708,0.56383349,58207.0,58206.0,0.41296191]
[1725501717937,0.63643349,58207.0,58206.0,0.10863824]
[1725501718154,0.12026,58207.0,58206.0,0.17823824]
[1725501718370,0.36078,58207.0,58206.0,0.48255803]
[1725501718810,0.361595,58207.0,58206.0,0.48255803]
[1725501719020,0.461595,58207.0,58206.0,0.48255803]
[1725501722176,0.221075,58207.0,58206.0,0.48255803]
[1725501722825,0.221075,58207.0,58206.0,0.58542658]
[1725501723042,0.221075,58207.0,58206.0,0.67082658]
[1725501723043,0.100815,58207.0,58206.0,0.67082658]
[1725501723270,0.000815,58207.0,58206.0,0.67082658]
[1725501723934,0.000815,58207.0,58206.0,0.79108858]
[1725501724143,0.000815,58207.0,58206.0,0.67082658]
[1725501724365,0.000815,58207.0,58206.0,0.56794645]
[1725501727502,0.121075,58207.0,58206.0,0.56794645]
[1725501727715,0.221075,58207.0,58206.0,0.56794645]
[1725501727933,0.100815,58207.0,58206.0,0.49834637]
[1725501728201,0.100815,58207.0,58206.0,0.68910837]
[1725501728883,0.000815,58207.0,58206.0,0.56884637]
[1725501729095,0.100815,58207.0,58206.0,0.56884637]
[1725501730953,0.461595,58207.0,58206.0,0.49834637]
[1725501731152,0.702115,58207.0,58206.0,0.41294637]
[1725501733028,0.702115,58207.0,58206.0,0.41294738]
[1725501737309,1.013435,58207.0,58206.0,0.41294738]
[1725501740073,1.06633117,58207.0,58206.0,0.41294738]
[1725501740294,1.06633117,58207.0,58206.0,0.5160385]
[1725501740295,1.365355,58207.0,58206.0,0.5160385]
[1725501740735,1.365355,58207.0,58206.0,0.41294738]
[1725501740999,1.365355,58207.0,58206.0,0.40694738]
[1725501741231,1.365355,58207.0,58206.0,0.47625605]
[1725501741476,1.371355,58207.0,58206.0,0.47625605]
[1725501741708,1.365355,58207.0,58206.0,0.47625605]
[1725501742154,1.371355,58207.0,58206.0,0.47625605]
[1725501743297,1.365355,58207.0,58206.0,0.09477749]
[1725501743768,1.369355,58207.0,58206.0,0.09477749]
[1725501744226,1.369355,58207.0,58206.0,0.01746882]
[1725501745123,1.369355,58207.0,58206.0,0.06898779]
[1725501745350,1.369355,58207.0,58206.0,0.01746882]
[1725501746214,1.369355,58207.0,58206.0,0.06897753]
[1725501746948,1.369355,58207.0,58206.0,0.01746882]
[1725501747170,1.71095335,58207.0,58206.0,0.00163]
[1725501747399,1.71395335,58207.0,58206.0,0.00163]
[1725501747831,1.71095335,58207.0,58206.0,0.00163]
[1725501748046,1.71495335,58207.0,58206.0,0.00163]
[1725501748283,1.71095335,58207.0,58206.0,0.00163]
[1725501749882,1.71595335,58207.0,58206.0,0.00163]
[1725501750357,1.66305718,58207.0,58206.0,0.00163]
[1725501750604,1.66505718,58207.0,58206.0,0.00163]
[1725501751288,1.71795335,58207.0,58206.0,0.00163]
[1725501751532,1.71595335,58207.0,58206.0,0.00163]
[1725501752472,1.71795335,58207.0,58206.0,0.00163]
[1725501753565,1.71595335,58207.0,58206.0,0.00163]
[1725501754827,1.66305718,58207.0,58206.0,0.00163]
[1725501755037,1.71595335,58207.0,58206.0,0.00163]
[1725501755251,1.66305718,58207.0,58206.0,0.00163]
[1725501756580,1.67505718,58207.0,58206.0,0.00163]
[1725501757493,1.67005718,58207.0,58206.0,0.00163]
[1725501757717,1.67005718,58207.0,58206.0,0.00263]
[1725501757933,1.67805718,58207.0,58206.0,0.00363]
[1725501758144,1.67005718,58207.0,58206.0,0.00263]
[1725501758359,1.67805718,58207.0,58206.0,0.00263]
[1725501758582,1.67805718,58207.0,58206.0,0.00363]
[1725501758795,1.67805718,58207.0,58194.0,0.00163]
[1725501758796,1.149365,58195.0,58194.0,0.00163]
[1725501759008,1.73581321,58195.0,58194.0,0.00163]
[1725501759223,0.842226,58179.0,58178.0,0.0673]
[1725501759675,0.865226,58179.0,58178.0,0.01592463]
[1725501759903,0.84224,58178.0,58177.0,0.086]
[1725501760118,0.97233603,58178.0,58177.0,0.086]
[1725501761191,0.97233603,58178.0,58177.0,0.087]
[1725501761418,1.07233603,58178.0,58177.0,0.001]
[1725501765290,1.08549224,58178.0,58177.0,0.001]
[1725501765502,0.97839621,58178.0,58177.0,0.001]
[1725501765719,0.97839621,58178.0,58177.0,0.16153]
[1725501767603,0.71475621,58178.0,58177.0,0.16153]
[1725501767826,0.22032,58178.0,58177.0,0.16153]
[1725501768027,0.1,58178.0,58177.0,0.16153]
[1725501768234,0.22032,58178.0,58177.0,0.17745769]
[1725501768704,0.240608,58186.0,58177.0,0.17745769]
[1725501768705,0.120313,58182.0,58178.0,0.1546]
[1725501768912,0.1,58180.0,58178.0,0.1546]
[1725501769117,0.240621,58183.0,58178.0,0.1546]
[1725501769118,0.120311,58183.0,58181.0,0.1521]
[1725501769324,0.120311,58183.0,58182.0,0.1521]
[1725501769533,0.220311,58183.0,58182.0,0.1521]
[1725501769743,0.220311,58183.0,58182.0,0.16801236]
[1725501770651,0.1,58183.0,58182.0,0.16801236]
[1725501771064,0.220308,58184.0,58183.0,0.1542]
[1725501771480,0.220308,58184.0,58183.0,0.1701093]
[1725501771702,0.220308,58184.0,58183.0,0.1542]
[1725501771919,0.220308,58184.0,58183.0,0.1701093]
[1725501772614,0.221308,58184.0,58183.0,0.1701093]
[1725501773053,0.222308,58184.0,58183.0,0.1701093]
[1725501776896,0.222307,58184.0,58183.0,0.1701093]
[1725501778240,0.002,58184.0,58183.0,0.5310393]
[1725501778461,0.002,58184.0,58183.0,0.44884004]
[1725501778896,0.002,58184.0,58183.0,0.22143401]
[1725501778897,0.001,58184.0,58183.0,0.22143401]
[1725501779381,0.001,58184.0,58183.0,0.1701093]
[1725501779612,0.001,58184.0,58183.0,0.62869428]
[1725501779852,0.002,58184.0,58183.0,0.62869428]
[1725501780065,0.002,58184.0,58183.0,0.55170721]
[1725501780295,0.001,58184.0,58183.0,0.55170721]
[1725501780522,0.121307,58184.0,58183.0,0.63873284]
[1725501780748,0.121307,58184.0,58183.0,0.23346128]
[1725501780749,0.001,58184.0,58183.0,0.23346128]
[1725501780982,0.002,58184.0,58183.0,0.23346128]
[1725501781219,0.002,58184.0,58183.0,0.23146128]
[1725501781453,0.003,58184.0,58183.0,0.23346128]
[1725501781665,0.003,58184.0,58183.0,0.1821093]
[1725501782126,0.003,58184.0,58183.0,0.16407075]
[1725501782127,0.604537,58184.0,58183.0,0.16407075]
[1725501782351,0.604537,58184.0,58183.0,0.1127093]
[1725501784210,0.604537,58184.0,58183.0,0.16408329]
[1725501784855,0.123307,58184.0,58183.0,0.23468329]
[1725501785305,0.363922,58184.0,58183.0,0.23468329]
[1725501785535,0.363922,58184.0,58183.0,0.1833093]
[1725501786496,0.003,58184.0,58183.0,0.76230672]
[1725501786957,0.003,58184.0,58183.0,0.78799372]
[1725501787189,0.003,58184.0,58183.0,1.02861372]
[1725501787417,0.003,58184.0,58183.0,0.92586573]
[1725501787659,0.003,58184.0,58183.0,1.53554071]
[1725501787880,0.003,58184.0,58183.0,1.40910573]
[1725501789014,0.003,58184.0,58183.0,1.40710573]
[1725501789262,0.003,58184.0,58183.0,1.94132497]
[1725501789480,0.003,58184.0,58183.0,2.09554972]
[1725501789715,0.003,58184.0,58183.0,1.70070497]
[1725501789936,0.003,58184.0,58183.0,0.68524573]
[1725501790152,0.003,58184.0,58183.0,1.4600728]
[1725501790849,0.003,58184.0,58183.0,0.68524573]
[1725501791296,0.003,58184.0,58183.0,1.37364916]
[1725501791972,0.003,58184.0,58183.0,1.37365307]
[1725501793045,0.003,58184.0,58183.0,1.3736339]
[1725501794809,0.003,58184.0,58183.0,1.6142539]
[1725501797338,0.003,58184.0,58183.0,0.56487841]
[1725501798326,0.003,58184.0,58183.0,0.56490856]
[1725501800382,0.003,58184.0,58183.0,0.56654056]
[1725501803294,0.003,58184.0,58183.0,0.56654291]
[1725501806409,0.003,58184.0,58183.0,1.4359914]
[1725501806630,0.003,58184.0,58183.0,1.97019825]
[1725501806850,0.003,58184.0,58183.0,2.21081825]
[1725501808215,0.003,58184.0,58183.0,1.97019825]
[1725501808440,0.003,58184.0,58183.0,1.46167976]
[1725501809354,0.003,58184.0,58183.0,1.70229976]
[1725501810435,0.003,58184.0,58183.0,1.10074976]
[1725501811768,0.003,58184.0,58183.0,1.22105976]
[1725501816150,0.003,58184.0,58183.0,1.10074976]
[1725501816593,0.003,58184.0,58183.0,1.22105976]
[1725501817987,0.003,58184.0,58183.0,1.47167976]
[1725501818215,0.000816,58194.0,58191.0,0.0685]
[1725501818463,0.000816,58194.0,58192.0,1.00590846]
[1725501818674,0.000816,58194.0,58193.0,0.91580846]
[1725501818892,0.121103,58194.0,58193.0,0.91580846]
[1725501819111,0.673551,58194.0,58193.0,0.39748026]
[1725501821297,0.673551,58194.0,58193.0,0.40448026]
[1725501821933,0.673551,58194.0,58193.0,0.40148026]
[1725501822141,0.673551,58194.0,58193.0,0.39748026]
[1725501822361,0.674551,58194.0,58193.0,0.40148026]
[1725501822986,0.68795023,58194.0,58193.0,0.40148026]
[1725501823443,0.68895023,58194.0,58193.0,0.40848026]
[1725501826198,0.61765023,58194.0,58193.0,0.40848026]
[1725501828722,0.61765023,58194.0,58193.0,0.02687865]
[1725501828939,0.61765023,58194.0,58193.0,0.40842894]
[1725501829176,0.604251,58194.0,58193.0,0.39255029]
[1725501829424,0.604251,58194.0,58193.0,0.40842894]
[1725501829639,0.002816,58194.0,58193.0,0.56432894]
[1725501829869,0.002816,58194.0,58193.0,1.09849658]
[1725501830092,0.002816,58194.0,58193.0,1.25301586]
[1725501830333,0.002816,58194.0,58193.0,1.25300501]
[1725501830594,0.123103,58194.0,58193.0,1.25300501]
[1725501832222,0.01328099,58200.0,58193.0,0.5643229]
[1725501832461,0.01328099,58200.0,58197.0,0.10302742]
[1725501832678,0.240558,58198.0,58195.0,0.12878428]
[1725501832888,0.120283,58196.0,58195.0,0.12878428]
[1725501833130,0.120283,58196.0,58195.0,0.51032881]
[1725501833793,0.120283,58196.0,58195.0,0.51034179]
[1725501834021,0.12028,58198.0,58195.0,0.51034179]
[1725501834243,0.1,58201.0,58195.0,0.51034179]
[1725501834244,0.1,58201.0,58198.0,0.1584]
[1725501834485,0.220273,58201.0,58199.0,0.38154451]
[1725501834700,0.120273,58201.0,58200.0,0.38154451]
[1725501834927,0.220273,58201.0,58200.0,0.38154451]
[1725501838583,0.220273,58201.0,58200.0,0.48451201]
[1725501839021,0.220273,58201.0,58200.0,0.48651201]
[1725501839236,0.460818,58201.0,58200.0,0.48651201]
[1725501839466,0.460818,58201.0,58200.0,0.38354451]
[1725501839467,0.701363,58201.0,58200.0,0.38354451]
[1725501839678,0.529618,58201.0,58200.0,0.38352816]
[1725501839902,0.8773284,58201.0,58200.0,0.46075941]
[1725501840148,0.8773284,58201.0,58200.0,0.002]
[1725501840374,0.8773284,58201.0,58200.0,0.004]
[1725501842269,0.8773284,58201.0,58200.0,0.38554598]
[1725501842472,0.8773284,58201.0,58200.0,0.40140318]
[1725501842682,1.1408734,58201.0,58200.0,0.40140318]
[1725501843125,1.1408734,58201.0,58200.0,0.50437068]
[1725501843476,1.1408734,58201.0,58200.0,0.40140318]
[1725501843571,1.1408734,58201.0,58200.0,0.50437068]
[1725501843792,1.1408734,58201.0,58200.0,0.40140318]
[1725501844275,1.1408734,58201.0,58200.0,0.47864569]
[1725501844806,1.48649814,58201.0,58200.0,0.0198572]
[1725501845021,1.57659814,58201.0,58200.0,0.0198572]
[1725501845269,1.57659814,58201.0,58200.0,0.004]
[1725501845512,1.52370072,58201.0,58200.0,0.004]
[1725501845734,1.52370072,58201.0,58200.0,0.002]
[1725501846011,1.52770072,58201.0,58200.0,0.002]
[1725501846487,1.52370072,58201.0,58200.0,0.002]
[1725501846718,1.52370072,58201.0,58193.0,0.05150493]
[1725501846719,0.911409,58194.0,58193.0,0.05150493]
[1725501846941,0.601445,58193.0,58192.0,0.05150493]
[1725501847164,0.965023,58193.0,58192.0,0.05150493]
[1725501848106,0.965023,58193.0,58192.0,0.05350493]
[1725501848334,0.965023,58193.0,58192.0,0.002]
[1725501848335,1.41798332,58193.0,58192.0,0.002]
[1725501849717,1.365801,58193.0,58192.0,0.004]
[1725501849977,1.275001,58193.0,58192.0,0.004]
[1725501850194,0.942023,58193.0,58192.0,0.002]
[1725501850641,0.942023,58193.0,58192.0,0.4865721]
[1725501851087,0.701445,58193.0,58192.0,0.4845721]
[1725501852012,0.71469034,58193.0,58192.0,0.4845721]
[1725501853172,0.71469034,58193.0,58192.0,0.3816046]
[1725501854783,0.71469034,58193.0,58192.0,0.4845721]
[1725501855009,0.71469034,58193.0,58192.0,0.3816046]
[1725501855902,0.71469034,58193.0,58192.0,0.49250448]
[1725501855903,0.71569034,58193.0,58192.0,0.49250448]
[1725501856373,0.71569034,58193.0,58192.0,0.3896046]
[1725501857022,1.04666834,58193.0,58192.0,0.009]
[1725501857741,1.04666834,58193.0,58192.0,0.06046021]
[1725501858649,1.04666834,58193.0,58192.0,0.009]
[1725501862422,1.04666834,58193.0,58192.0,0.01063]
[1725501863605,0.98026834,58193.0,58192.0,0.01063]
[1725501879615,1.19145066,58193.0,58192.0,0.01063]
[1725501879860,1.24434808,58193.0,58192.0,0.01063]
[1725501880100,1.48692608,58193.0,58192.0,0.01063]
[1725501880535,1.48592608,58193.0,58192.0,0.00263]
[1725501880758,1.48592608,58193.0,58192.0,0.00163]
[1725501880759,1.48492608,58193.0,58192.0,0.00163]
[1725501880985,1.48292608,58193.0,58192.0,0.00163]
[1725501881203,1.43002866,58193.0,58192.0,0.00163]
[1725501883924,1.34162866,58193.0,58192.0,0.00163]
[1725501884168,1.06243374,58193.0,58192.0,0.00163]
[1725501885043,1.06243374,58193.0,58192.0,0.01751171]
[1725501885304,1.06243374,58193.0,58192.0,0.00163]
[1725501885781,1.06243374,58193.0,58192.0,0.01751171]
[1725501885978,1.06243374,58193.0,58192.0,0.00163]
[1725501886251,1.08543374,58193.0,58192.0,0.01751171]
[1725501886477,1.08543374,58193.0,58192.0,0.00163]
[1725501886707,1.08543374,58193.0,58192.0,0.01751171]
[1725501886945,1.08543374,58193.0,58192.0,0.00163]
[1725501887389,1.08543374,58193.0,58192.0,0.01751171]
[1725501887614,1.08543374,58193.0,58192.0,0.00163]
[1725501887852,1.08543374,58193.0,58192.0,0.01751171]
[1725501888110,1.08543374,58193.0,58192.0,0.00163]
[1725501888354,1.08543374,58193.0,58192.0,0.00263]
[1725501888559,1.08543374,58193.0,58192.0,0.01851171]
[1725501889062,0.73769034,58193.0,58192.0,0.17501171]
[1725501889289,0.73769034,58193.0,58192.0,0.25218745]